Cogmind - Beta 16.1 @@@ ROGUE MODE // 2026.02.14 @ 19:34:50 Player: Skergy Result: Destroyed by EA-3S9(R) with Subdweller Beam Cannon Performance ------------- Evolutions (0) 0 Regions Visited (2) 400 Robots Destroyed (19) 95 Value Destroyed (457) 457 Prototype IDs (0) 0 Alien Tech Used (0) 0 Bonus (-66) -66 TOTAL SCORE: 886 Bonus ------- Friendly Fire -66 Cogmind --------- Core Integrity 0/250 Matter 271/300 Energy 219/250 System Corruption 7% Temperature Cool (9) Movement Rolling (150) Ox4 Location -10/Subcaves Parts ------- > --- POWER (1) -------- Ion Engine (fused) > --- PROPULSION (2) --- Light Treads Subdweller Monowheel > --- UTILITY (2) ------ Huge Storage Unit > --- WEAPON (2) ------- Subdweller Beam Cannon Subdweller Machine Gun > --- INVENTORY (25) --- Ion Engine Ion Engine Subdweller Power Source Wheel Wheel Subdweller Monowheel Subdweller Monowheel Large Storage Unit Medium Matter Pod (100) Medium Matter Pod (13) High-capacity Matter Pod (116) Sensor Array Improved Terrain Scanner Seismic Detector Scrap Shield Subdweller Machine Gun Subdweller Machine Gun Dirty Datajack (20) Mining Laser Flamer Peak State ------------ > --- POWER ------------ Ion Engine > --- PROPULSION ------- Subdweller Monowheel Subdweller Monowheel > --- UTILITY ---------- Huge Storage Unit > --- WEAPON ----------- Barrage Gun Dirty Datajack > --- INVENTORY -------- Ion Engine Ion Engine Light Treads Wheel Wheel Subdweller Monowheel Large Storage Unit Medium Matter Pod Medium Matter Pod High-capacity Matter Pod Sensor Array Improved Terrain Scanner Seismic Detector Subdweller Beam Cannon Subdweller Machine Gun Mining Laser Flamer [Rating: 17] Favorites ----------- Power Ion Engine Engine Ion Engine Propulsion Light Treads Treads Light Treads Wheel Subdweller Monowheel Utility Huge Storage Unit Device Seismic Detector Storage Huge Storage Unit Protection Light Armor Plating Weapon EM Pulse Gun Energy Gun EM Pulse Gun Energy Cannon Subdweller Beam Cannon Ballistic Gun Barrage Gun Launcher Grenade Launcher Special Melee Weapon Dirty Datajack Build | -11 -10 -10 ------- Run | Yrd Mat Sub Slots Evolved . | . . . Power . | . . . Propulsion . | . . . Utility . | . . . Weapon . | . . . Parts Attached 24 | 8 5 11 Power 1 | 1 . . Engine 1 | 1 . . Core . | . . . Reactor . | . . . Propulsion 6 | 2 1 3 Treads 2 | 2 . . Leg . | . . . Wheel 4 | . 1 3 Hover . | . . . Flight . | . . . Utility 6 | 3 3 . Device 2 | 2 . . Storage 3 | 1 2 . Processor . | . . . Hackware . | . . . Protection 1 | . 1 . Artifact . | . . . Weapon 11 | 2 1 8 Energy Gun 4 | 2 1 1 Energy Cannon 2 | . . 2 Ballistic Gun 3 | . . 3 Ballistic Cannon . | . . . Launcher 1 | . . 1 Special Weapon . | . . . Impact Weapon . | . . . Slashing Weapon . | . . . Piercing Weapon . | . . . Special Melee Weapon 1 | . . 1 Unidentified Prototypes . | . . . Corrupted Parts 1 | . . 1 System Corruption 5 | . . 5 Parts Lost 12 | . 1 11 Power . | . . . Propulsion 3 | . . 3 Utility 1 | . . 1 Weapon 8 | . 1 7 Highest Loss Streak 6 | . 1 6 To Critical Strikes . | . . . Average Backups 12 | 4 10 16 Power 1 | . 1 2 Propulsion 2 | 2 2 3 Utility 4 | . 3 7 Weapon 3 | 1 3 3 Tool/Special . | . . . Unused Backups 19 | . 4 15 Power 4 | . 1 3 Propulsion 5 | . 2 3 Utility 5 | . . 5 Weapon 5 | . 1 4 Tool/Special . | . . . Average Slot Usage (%) 92 | . 100 81 Engine 14 | . 14 14 Treads 16 | . 26 2 Wheel 11 | . 1 24 Device 3 | . 5 . Storage 14 | . 14 14 Protection 5 | . 8 1 Energy Gun 19 | . 28 8 Energy Cannon 3 | . . 7 Ballistic Gun 3 | . . 7 Peak Build Rating 17 | 9 8 17 Average Rating 8 | 5 7 10 On Entrance 5 | . 8 8 Avg Prop Armor Cover (%) 6 | . 9 6 Naked Turns . | . . . Heaviest Build 96 | 15 92 96 Greatest Support 40 | 40 40 40 Greatest Overweight (x) 9 | . 5 9 Average Overweight (x) 1 | . . 3 Largest Inventory Capacity 25 | 8 25 25 Average Capacity 18 | 7 14 25 Most Carried 23 | 8 15 23 Average Carried 12 | 5 10 16 Final Capacity 25 | 8 25 25 Final Carried 21 | 8 15 21 Class Distribution -------------------- 100% | Mutant Dominant Class ---------------- Mutant | -10/Materials Mutant | -10/Subcaves Resources | -11 -10 -10 ----------- Run | Yrd Mat Sub Matter Collected 794 | 280 159 355 Remotely . | . . . Salvage Created 714 | 131 208 375 Parts 53 | 14 17 22 Haulers Intercepted . | . . . Recyclers Shooed 1 | . 1 . Parts Field Recycled . | . . . Retrieved Matter . | . . . Parts Self-Destructed . | . . . Prevented . | . . . Parts Restored . | . . . Kills | -11 -10 -10 ------- Run | Yrd Mat Sub Combat Hostiles Destroyed 11 | . 6 5 Guns 7 | . 4 3 Cannons 1 | . . 1 AOE 3 | . 2 1 Classes Destroyed 7 | 2 3 2 Tunneler 4 | 4 . . Recycler 1 | 1 . . Watcher 3 | . 3 . Swarmer 3 | . 3 . Grunt 3 | . 3 . Subdweller 5 | . . 5 Scientist 1 | . . 1 Best Kill Streak 3 | 3 3 2 Combat Bots Only 3 | . 3 2 Max Kills in Single Turn 2 | 2 2 1 Gunslinging . | . . . Exploded 2 | . 2 1 Melee . | . . . Uniques/NPCs Destroyed . | . . . Combat | -11 -10 -10 -------- Run | Yrd Mat Sub Hostile Shots Fired 70 | . 25 45 Missed 19 | . 6 13 Hits 51 | . 19 32 Projectile 51 | . 19 32 Critical Strikes 1 | . . 1 Damage Taken 1250 | . 324 926 Core 271 | . 29 242 Absorbed by Shields . | . . . Core Remaining (%) 100 | 100 . . Volleys Fired 73 | 4 23 46 Largest 2 | 2 2 2 Hottest 120 | 80 80 120 Shots Fired 122 | 8 46 68 Gun 100 | 8 46 46 Cannon 20 | . . 20 Launcher 2 | . . 2 Special . | . . . Kinetic 27 | . . 27 Thermal 20 | . . 20 Explosive 2 | . . 2 Electromagnetic 73 | 8 46 19 Robot Hit Streak 19 | 3 3 19 Robot Miss Streak 3 | 1 3 1 Penetration Max . | . . . Secondary Targets . | . . . Shots Hit Robots 73 | 5 18 50 Core Hits 34 | 5 11 18 Critical Kills 1 | . . 1 Critical Parts Destroyed . | . . . Critical Strikes 3 | . 2 1 Meltdown 1 | . . 1 Corrupt 2 | . 2 . Melee Attacks . | . . . Impact . | . . . Slashing . | . . . Piercing . | . . . Sneak Attacks . | . . . Combat Hostiles . | . . . Follow-up Attacks . | . . . Damage Inflicted 1578 | 143 458 977 Guns 902 | 69 262 571 Cannons 243 | . . 243 Explosions 433 | 74 196 163 Melee . | . . . Ramming . | . . . Kinetic 378 | . . 378 Thermal 537 | 74 196 267 Explosive 139 | . . 139 Electromagnetic 524 | 69 262 193 Impact . | . . . Slashing . | . . . Piercing . | . . . Highest Corruption 7 | . 2 7 Average Corruption 4 | . 2 6 Corruption Purged . | . . . Corruption Blocked . | . . . Effects 31 | . 8 23 Message Errors 5 | . 1 4 Matter Fused 9 | . 2 7 Heat Flow Errors 3 | . 1 2 Energy Discharges 2 | . 1 1 Parts Fused 1 | . . 1 Data Loss (minor) 7 | . 3 4 Data Loss (major) 3 | . . 3 Misfires 1 | . . 1 Overload Shots . | . . . Overflow Damage 43 | . . 43 Projectiles . | . . . Explosions 43 | . . 43 Melee . | . . . Knockbacks . | . . . Impact . | . . . Kinetic . | . . . Secondary . | . . . Self-Inflicted Damage 184 | . 114 70 Shots 3 | . 1 2 Rammed . | . . . Targets Rammed . | . . . Kicked . | . . . Crushed . | . . . Highest Temperature 202 | 36 202 190 Average Temperature 47 | 16 51 46 Received Heat Transfer 192 | . 81 111 Siege Activations . | . . . Martial Activations . | . . . Shielding Activations . | . . . Robots Disrupted . | . . . Combat Hostiles . | . . . Robots Corrupted 2 | . 2 . Combat Hostiles . | . . . Parts Fried 5 | . 5 . Impact Corruptions . | . . . Robots Melted 1 | . . 1 Combat Hostiles 1 | . . 1 Parts Melted 1 | . . 1 Heat Transferred 533 | 50 100 383 Parts Sabotaged . | . . . Parts Stolen . | . . . Parts Stripped . | . . . Power Chain Reactions 2 | 1 . 1 Alert | -11 -10 -10 ------- Run | Yrd Mat Sub Maximum Alert Level . | . . . Low Security (%) 100 | 100 100 . Level 1 . | . . . Level 2 . | . . . Level 3 . | . . . Level 4 . | . . . Level 5 . | . . . High Security . | . . . Max Security . | . . . Peak Influence 116 | 10 116 . Initial . | . . . Average 40 | 3 44 . Influence Increases 322 | 25 297 . Destroy 0b10 Robot/C 120 | . 120 . Destroy 0b10 Robot/NC 40 | 25 15 . Destroy Leader 36 | . 36 . Successful Hack 26 | . 26 . Disable Machine 45 | . 45 . Destroy Structure 25 | . 25 . Lose Combat Pursuer 30 | . 30 . Influence Decreases 322 | 25 297 . Time Decay 312 | 25 287 . Lost Part 10 | . 10 . Squads Dispatched 2 | . 2 . Investigation . | . . . Extermination . | . . . Reinforcement 2 | . 2 . Assault . | . . . Garrison . | . . . Intercept . | . . . Searches Triggered . | . . . Construction Impeded . | . . . Haulers Reinforced . | . . . Active Scanning Responses . | . . . Cargo Convoy Interrupts . | . . . Stealth | -11 -10 -10 --------- Run | Yrd Mat Sub Distress Signals . | . . . Communications Jammed . | . . . Distress Signals . | . . . Times Spotted 19 | . 12 7 Peak Tracking Total 3 | . 3 2 Tactical Retreats 2 | . 1 1 Traps | -11 -10 -10 ------- Run | Yrd Mat Sub Traps Triggered 4 | . 1 3 Indirectly . | . . . Trap Hack Attempts . | . . . Triggered . | . . . Disarmed . | . . . Reprogrammed . | . . . Reused . | . . . Traps Extracted . | . . . Installed . | . . . Triggered . | . . . Machines | -11 -10 -10 ---------- Run | Yrd Mat Sub Machines Disabled 3 | . 3 . Max in Single Turn 2 | . 2 . Machines Repaired . | . . . Machines Dismantled . | . . . Machines Sabotaged . | . . . Overloaded Fab Kills . | . . . Hacking | -11 -10 -10 --------- Run | Yrd Mat Sub Machines Accessed 7 | . 7 . Terminals 6 | . 6 . Fabricators . | . . . Repair Stations . | . . . Recycling Units 1 | . 1 . Scanalyzers . | . . . Garrison Access . | . . . Total Hacks 28 | . 28 . Successful 19 | . 19 . Failed 9 | . 9 . Catastrophic 1 | . 1 . Database Lockouts . | . . . Manual 26 | . 26 . Terminals 26 | . 26 . Fabricators . | . . . Repair Stations . | . . . Recycling Units 2 | . 2 . Scanalyzers . | . . . Garrison Access . | . . . Terminal Hacks 6 | . 6 . Robot Analysis 1 | . 1 . Terminal Index 1 | . 1 . Locate Traps 1 | . 1 . Recall Reinforcements 2 | . 2 . Registered Components 1 | . 1 . Fabricator Hacks . | . . . Repair Station Hacks . | . . . Recycling Unit Hacks . | . . . Scanalyzer . | . . . Garrison Access Hacks . | . . . Unauthorized Hacks 13 | . 13 . Terminals 11 | . 11 . Track 3 | . 3 . Assimilate 3 | . 3 . Botnet 4 | . 4 . Operators 1 | . 1 . Fabricators . | . . . Repair Stations . | . . . Recycling Units 2 | . 2 . Recyclers 1 | . 1 . Mask 1 | . 1 . Scanalyzers . | . . . Garrison Access . | . . . Data Cores Recovered . | . . . Used . | . . . Hacking Detections 7 | . 7 . Full Trace Events . | . . . Feedback Events . | . . . Feedback Blocked . | . . . Robot Schematics Acquired . | . . . Robots Built . | . . . Authchips . | . . . Time . | . . . Total Robot Build Rating . | . . . Part Schematics Acquired . | . . . Parts Built . | . . . Authchips . | . . . Time . | . . . Total Part Build Rating . | . . . Part Studies Acquired . | . . . Parts Repaired . | . . . Time . | . . . Parts Recycled . | . . . Recycled Matter . | . . . Retrieved Matter . | . . . Retrieved Components . | . . . Parts Scanalyzed . | . . . Part Schematics Acquired . | . . . Parts Damaged . | . . . Bothacking | -11 -10 -10 ------------ Run | Yrd Mat Sub Used RIF Installer . | . . . Robots Hacked . | . . . Non-combat . | . . . Combat . | . . . Robot Hacks Applied . | . . . Relay Couplers Released . | . . . Fabnet Peak Effective % . | . . . Robots Rewired . | . . . Allies Hacked . | . . . Hacks Repelled . | . . . Allies | -11 -10 -10 -------- Run | Yrd Mat Sub Total Allies . | . . . Largest Group . | . . . Highest-Rated Group . | . . . Highest-Rated Ally . | . . . Total Orders . | . . . Ally Attacks . | . . . Total Damage . | . . . Kills . | . . . Allies Corrupted . | . . . Allies Melted . | . . . Intel | -11 -10 -10 ------- Run | Yrd Mat Sub Active Infowar (turns) 418 | 39 379 . Terrain 18 | 18 . . Seismic 400 | 21 379 . Robot Analysis Total 1 | . 1 . Derelict Logs Recovered 1 | . . 1 Drone Launches . | . . . Drone Recoveries . | . . . Exploration | -11 -10 -10 ------------- Run | Yrd Mat Sub Turns Passed 1915 | 113 1018 784 Spaces Moved 985 | 55 516 414 Core 5 | 5 . . Treads 523 | 50 473 . Legs . | . . . Wheels 457 | . 43 414 Hover . | . . . Flight . | . . . Fastest Speed 50 | 50 160 130 Average Speed 155 | 150 161 149 Slowest Speed 215 | 160 175 215 Overloaded Moves . | . . . Propulsion Burnouts . | . . . Robots Hopped . | . . . Potential Cave-ins . | . . . Cave-ins Triggered . | . . . Exploration Rate (%) 43 | 4 87 38 Regions Visited 2 Branch Regions 1 Pre-discovered Areas 1 | . . 1 Known Exits Taken . | . . . Unknown Exits Taken 2 | 1 1 . Scrap Searched 1 | . . 1 Spaces Dug 2 | . . 2 Terrain Destroyed 48 | 5 26 17 Melee . | . . . Projectile 6 | . . 6 AOE 42 | 5 26 11 Terrain Rammed . | . . . Walls Destroyed . | . . . Machines Disabled . | . . . Actions | -11 -10 -10 --------- Run | Yrd Mat Sub Total 1247 | 74 660 513 Wait 126 | . 100 26 Move 983 | 54 515 414 Hop . | . . . Pick Up 29 | 7 11 11 Fast Attach 11 | 8 . 3 Attach 11 | . 2 9 Detach 4 | 1 1 2 Swap 5 | . 3 2 Drop 5 | . 5 . Fire 73 | 4 23 46 Melee . | . . . Ram . | . . . Kick . | . . . Crush . | . . . Escape Stasis . | . . . Rewire . | . . . Trap . | . . . Miscellaneous . | . . . Route ------- -11/Scrapyard -10/Materials (discovered 4 exits: [*Mat x2] / [*Min] / [*Sub]) -10/Subcaves History --------- Turn | Location | Event 2 | -11/Scrapyard | Met Revision 17 38 | -11/Scrapyard | Discovered new exit (range 15) 114 | -11/Scrapyard | Entered Materials 261 | -10/Materials | Discovered new exit (range 16) 309 | -10/Materials | Build established: Mutant 420 | -10/Materials | Discovered new exit (range 13) 484 | -10/Materials | Discovered new exit (range 8) 1118 | -10/Materials | Discovered new exit (range 9) 1132 | -10/Materials | Entered Subcaves 1133 | -10/Subcaves | Approached by a straggling Scientist 1252 | -10/Subcaves | Core integrity fell below 50% 1268 | -10/Subcaves | Lost 6 parts (2n1u3w) 1366 | -10/Subcaves | Shifting Twisted Machinery released Barrage Gun 1697 | -10/Subcaves | Learned location of Mines (-9) 1884 | -10/Subcaves | Ambushed by Subdwellers from Twisted Machinery 1892 | -10/Subcaves | Core integrity fell below 20% 1916 | -10/Subcaves | Destroyed by EA-3S9(R) with Subdweller Beam Cannon Last Messages --------------- 01761_ Sub. Monowheel melted. 01765_ Acquired Sub. Monowheel. 01768_ Acquired Sub. Power Source. 01770_ Acquired Sub. Machine Gun. 01771_ Acquired 38 matter. 01776_ Acquired Sub. Machine Gun. 01790_ System corrupted: Energy discharge (-86). 01814_ System corrupted: Substantial component data lost. 01826_ Acquired 48 matter. 01831_ Subatomizers dissect the Disposable Heat Sink. 01839_ System corrupted: Substantial component data lost. 01852_ Acquired 15 matter. 01855_ VV4I0IZ,UZUBD|Z87 RZ6 01862_ Acquired Scrap Shield. 01882_ PZK/VL#QS2SX5PXB4GMXRIDF|Q5IE1:6QXUV#O% 01884_ Q6-0CT(R) emerges from the Twisted Machinery. 01889_ Broken Sub. Monowheel destroyed. 01897_ System corrupted: Ion Engine fused. 01914_ Barrage Gun destroyed. 01916_ Q6-0CT(R) destroyed. Map ----- +----------------------------------------------------+ | ?????????????????????????????????????????????????? | | ?????????????????????????????????????????????????? | | ?????????????????????????????????????????????????? | | ?????????????????????????????????????????????????? | | ?????????????????????????????????????????????????? | | ?????????????????????????????????????????????????? | | ?????????????????????????????????????????????????? | | ?????????????????????????????????????????????????? | | ?????????????????????????????????????????????????? | | ?????????????????????????????????????????????????? | | ?????????????????????????????????????????????????? | | ???????????????????????????#####?????????????????? | | ?????????????????????????## ### ????????????? | | ????????????????????????## ???????????? | | ????????????????????????# ???????????? | | ???????????????????????## ?? ?????? | | ??????????????????????## #?? ??????? | | ?????????????????????## #?? #??????? | | ????????????????????## #?? #??????? | | ?????????????????#### ### ##??????? | | ????????????????## #?# ##?????? | | ???????????????## #### #?????? | | ??????????????## ## #?????? | | ??????????????# R #?????? | | ?????????????# &%! #???????? | | ?????????# ##@ #?????????? | | ??????????# ### #?????????? | | ??????????## # # ?#### ##????????? | | ????????????? ????##### ########?? | | ??????????? ### ????????# ## #?? | | ??????????" #??# ????????# ##? | | ?????????? ## #??? ???????# ## | | ??????????#??####???? ???????# ### # | | ????????????????????? ???????# #?### | | ????????????????????? ???????#### #??### | | ????????????????????? #?????????## ???#### | | ?????????????????????# ##??????????# ## ?????? | | ??????????????????????##????????????####?####????? | | ?#???????????????????????????????????????????????? | | ? ??????????????????????????????????????????????? | | ??????????????????????????????????????????????? | | ???????????????????????????????????????????????? | | ??????????????????????????????????????????????? | | ???????????????????????????????????????????????? | | ?????????????? ???????????????????????????????? | | #?????????????? ??????????????????????????????? | | ??????????????? ??????????????????????????????? | | ???#####??????? #??????????????????????????????? | | ???? #???????# ####???????????????????????????? | | ##??# ##?????## ## #?????????????????????######? | +----------------------------------------------------+ Best States ------------- Heat Dissipation 25 Energy Generation 10 Energy Capacity 250 Matter Stores 300 Matter Capacity 300 Sight Range 16 Terrain Scan Range 16 Terrain Scan Density 10 Armor Coverage 150 Evasion (%) 40 Recoil Reduction 2 Item Schematics ----------------- None Robot Schematics ------------------ None Fabricated ------------ Nothing Repaired ---------- Nothing Studied --------- None Alien Tech Used ----------------- None Achievements -------------- My Bad Challenges ------------ None Game ------ Seed DispersionShieldTorch Manual? 0 Play Time 00:19:03 Cumulative 125.8 hours Start 2026.02.14 @ 19:15:25 End 2026.02.14 @ 19:34:50 Sessions 1 Manual Loads 0 Difficulty Rogue Special Mode None Game No. 134 Rogue 134 Adventurer 0 Explorer 0 Win Type - Total 4 Types 4/0/0/0/0/0/0/0/0/0 Lore% 68 Gallery% 52 Achievement% 41 Wizard Run 0 Options --------- Layout 0 ASCII 0 Keyboard 1 Movement Vi Keybinds 0 Fullscreen 1 Font 24/Terminus Map View 76x50 Zoom Use 0% Tactical HUD 1 Map Filters NONE Filters NONE Steam 1 RUN: ece39bc6-6aaa-41c0-be63-975865601550